fUSD/lending_fUSD_20260225
["ID","MTS","AMOUNT","RATE_DAILY","PERIOD"]
[406639099,1772007045455,-150.0,0.00017037,2]
[406639100,1772007045465,-200.0,0.00017037,2]
[406639101,1772007045475,-150.0,0.00017037,2]
[406639102,1772007045485,-150.0,0.00017037,2]
[406639103,1772007045495,-150.0,0.00017037,2]
[406639104,1772007045506,-150.0,0.00017037,2]
[406639105,1772007045515,-150.0,0.00017037,2]
[406639106,1772007045525,-150.0,0.00017037,2]
[406639107,1772007045534,-150.0,0.00017037,2]
[406639108,1772007045543,-150.0,0.00017037,2]
[406639109,1772007045553,-3497.0,0.00017037,2]
[406639110,1772007045563,-618.0,0.00017037,2]
[406639111,1772007045573,-1340.0,0.00017037,2]
[406639112,1772007045583,-150.0,0.00017037,2]
[406639113,1772007045592,-1277.0,0.00017037,2]
[406639114,1772007045601,-1000.0,0.00017058,2]
[406639115,1772007045611,-179.0,0.00017094,2]
[406639116,1772007045620,-50103.402476,0.000171,2]
[406639117,1772007045630,-179.0,0.00017186,2]
[406639118,1772007045639,-179.0,0.00017218,2]
[406639119,1772007045649,-179.0,0.00017226,2]
[406639120,1772007045659,-1000.0,0.0001726,2]
[406639121,1772007045669,-515.0,0.00017339,4]
[406639122,1772007045679,-179.0,0.00017355,2]
[406639123,1772007045688,-4100.0,0.000174,6]
[406639124,1772007045698,-179.0,0.00017453,2]
[406639125,1772007045712,-5531.0,0.000175,5]
[406639126,1772007045722,-800.0,0.000175,6]
[406639127,1772007045731,-1999.0,0.00017534,2]
[406639128,1772007045742,-179.0,0.00017586,2]
[406639130,1772007045751,-800.0,0.000176,6]
[406639131,1772007045760,-179.0,0.00017624,2]
[406639132,1772007045771,-1326.95458225,0.0001764,2]
[406639133,1772007045780,-800.0,0.000177,6]
[406639134,1772007045790,-717.60628486,0.000178,2]
[406639135,1772007045800,-800.0,0.000178,6]
[406639136,1772007045809,-739.09795978,0.00017808,2]
[406639137,1772007045819,-739.09795978,0.00017808,2]
[406639138,1772007045831,-739.09795978,0.00017808,2]
[406639139,1772007045842,-739.09795978,0.00017808,2]
[406639140,1772007045852,-739.09795978,0.00017808,2]
[406639141,1772007045862,-739.09795978,0.00017808,2]
[406639142,1772007045872,-739.09795978,0.00017808,2]
[406639143,1772007045882,-739.09795978,0.00017808,2]
[406639144,1772007045892,-739.09795978,0.00017808,2]
[406639145,1772007045902,-739.09795978,0.00017808,2]
[406639146,1772007045912,-739.09795978,0.00017808,2]
[406639147,1772007045922,-762.19477102,0.00017808,2]
[406639148,1772007045931,-762.19477102,0.00017808,2]
[406639149,1772007045941,-762.19477102,0.00017808,2]
[406639150,1772007045952,-762.19477102,0.00017808,2]
[406639151,1772007045963,-762.19477102,0.00017808,2]
[406639152,1772007045972,-762.19477102,0.00017808,2]
[406639153,1772007045982,-762.19477102,0.00017808,2]
[406639154,1772007045991,-762.19477102,0.00017808,2]
[406639155,1772007046001,-762.19477102,0.00017808,2]
[406639156,1772007046011,-774.65372401,0.00017808,2]
[406639157,1772007046020,-774.65372401,0.00017808,2]
[406639158,1772007046030,-774.65372401,0.00017808,2]
[406639159,1772007046040,-774.65372401,0.00017808,2]
[406639160,1772007046049,-774.65372401,0.00017808,2]
[406639161,1772007046059,-890.85178261,0.00017808,2]
[406639162,1772007046068,-890.85178261,0.00017808,2]
[406639163,1772007046078,-2000.0,0.0001782,2]
[406639164,1772007046087,-547.1736813,0.0001782,2]
[406639165,1772007046248,-187.75489265,8.619e-05,2]
[406639166,1772007046258,-385.74847682,0.00012129,2]
[406639167,1772007046267,-25.88803053,0.0001782,2]
[406639168,1772007046293,-1426.93828817,0.0001782,2]
[406639169,1772007046302,-2000.0,0.0001782,2]
[406639170,1772007046312,-2000.0,0.0001782,2]
[406639171,1772007046321,-717.60628485,0.0001785,2]
[406639172,1772007046331,-179.0,0.0001789,2]
[406639173,1772007046340,-179.0,0.00017893,2]
[406639174,1772007046349,-717.60628485,0.000179,2]
[406639175,1772007046358,-160.10355616,0.000179,2]
[406639176,1772007046368,-182.16364987,0.000179,2]
[406639177,1772007046378,-156.02756201,0.000179,2]
[406639178,1772007046387,-2348.66870448,0.000179,2]
[406639179,1772007046396,-1268.0,0.000179,6]
[406639180,1772007046405,-691.34769913,0.000179,2]
[406639181,1772007046415,-1166.73655981,0.000179,2]
[406639182,1772007046424,-2956.925101,0.000179,2]
[406639184,1772007046433,-772.0,0.00017974,2]
[406639185,1772007046444,-150.0,0.00017974,2]
[406639186,1772007046461,-150.0,0.00017974,2]
[406639187,1772007046472,-172.0,0.00017974,2]
[406639188,1772007046481,-280.22014743,0.0001798,2]
[406639190,1772007046490,-350.23917633,0.0001799,2]
[406639191,1772007046499,-350.23917633,0.0001799,2]
[406639192,1772007046508,-1045.79084285,0.00017995,5]
[406639193,1772007046517,-9253.20065759,0.00017996,3]
[406639194,1772007046526,-40698.3368558,0.00017996,4]
[406639195,1772007046538,-366.65649627,0.00017996,4]
[406639196,1772007046548,-335.8145242,0.00017996,4]
[406639199,1772007133430,9777.43,7.769e-05,2]
[406639200,1772007133457,10000.01,7.769e-05,2]
[406639201,1772007133485,10000.01,7.769e-05,2]
[406639202,1772007133508,10000.01,7.769e-05,2]
[406639203,1772007133532,10000.01,7.769e-05,2]
[406639204,1772007133555,10000.01,7.769e-05,2]
[406639205,1772007133579,10000.01,7.769e-05,2]
[406639206,1772007133604,10000.01,7.769e-05,2]
[406639207,1772007133628,10000.01,7.769e-05,2]
[406639208,1772007133656,10000.01,7.769e-05,2]
[406639209,1772007241451,300.0,7.768e-05,2]
[406639211,1772007301244,880.0,7.768e-05,2]
[406639212,1772007302433,150.0,7.768e-05,2]
[406639213,1772007303115,300.0,7.768e-05,2]
[406639214,1772007400619,485.72025731,7.669e-05,2]
[406639215,1772007421277,300.0,7.768e-05,2]
[406639217,1772007481229,300.0,7.768e-05,2]
[406639218,1772007483028,150.0,7.768e-05,2]
[406639219,1772007521183,292.45,7.114e-05,2]
[406639220,1772007521392,292.45,7.364e-05,2]
[406639221,1772007521607,292.45,7.613e-05,2]
[406639222,1772007594795,10000.01,7.669e-05,2]
[406639223,1772007594822,10000.01,7.669e-05,2]
[406639224,1772007594847,10000.01,7.669e-05,2]
[406639225,1772007594875,10000.01,7.669e-05,2]
[406639226,1772007594900,10000.01,7.669e-05,2]
[406639227,1772007594927,10000.01,7.669e-05,2]
[406639228,1772007594954,10000.01,7.669e-05,2]
[406639229,1772007594978,10000.01,7.669e-05,2]
[406639230,1772007595003,10000.01,7.669e-05,2]
[406639231,1772007606561,-215.0,7.669e-05,2]
[406639232,1772007636987,-177.50336236,7.668e-05,2]
[406639233,1772007637019,-152.15095844,7.668e-05,2]
[406639234,1772007637054,-500.0,7.668e-05,2]
[406639235,1772007637089,-500.0,7.668e-05,2]
[406639236,1772007637123,-500.0,7.668e-05,2]
[406639237,1772007637159,-500.0,7.668e-05,2]
[406639238,1772007637191,-500.0,7.668e-05,2]
[406639239,1772007637223,-500.0,7.668e-05,2]
[406639240,1772007637255,-521.4753812,7.668e-05,2]
[406639241,1772007695844,1668.46,7.516e-05,2]
[406639242,1772007695993,164.143,7.516e-05,2]
[406639250,1772007761675,-300.0,7.668e-05,2]
[406639251,1772007827589,-13700.0,7.669e-05,2]
[406639252,1772007901409,300.0,7.668e-05,2]
[406639253,1772007901442,1200.0,7.668e-05,2]
[406639254,1772007944355,500.0,7.668e-05,2]
[406639255,1772007944402,500.0,7.668e-05,2]
[406639256,1772007944459,500.0,7.668e-05,2]
[406639257,1772007944515,500.0,7.668e-05,2]
[406639258,1772007944585,500.0,7.668e-05,2]
[406639259,1772007944627,449.6525235,7.668e-05,2]
[406639260,1772007944675,500.0,7.668e-05,2]
[406639261,1772007961720,300.0,7.668e-05,2]
[406639262,1772008021799,300.0,7.668e-05,2]
[406639263,1772008072079,3850.3574765,7.569e-05,2]
[406639264,1772008072110,10000.01,7.569e-05,2]
[406639265,1772008072139,10000.01,7.569e-05,2]
[406639266,1772008072168,10000.01,7.569e-05,2]
[406639267,1772008072197,10000.01,7.569e-05,2]
[406639268,1772008072227,10000.01,7.569e-05,2]
[406639269,1772008072255,10000.01,7.569e-05,2]
[406639270,1772008072283,10000.01,7.569e-05,2]
[406639271,1772008072310,10000.01,7.569e-05,2]
[406639272,1772008072346,10000.01,7.569e-05,2]
[406639273,1772008079316,445.73,6.6e-05,2]
[406639274,1772008082562,-300.0,7.568e-05,2]
[406639275,1772008083129,-798.90323319,7.569e-05,2]
[406639276,1772008085728,-10000.01,7.569e-05,2]
[406639277,1772008085835,-10000.01,7.569e-05,2]
[406639278,1772008086012,-10000.01,7.569e-05,2]
[406639279,1772008086168,-10000.01,7.569e-05,2]
[406639280,1772008086291,-10000.01,7.569e-05,2]
[406639295,1772008232135,-300.0,7.568e-05,2]
[406639296,1772008232145,-1200.0,7.568e-05,2]
[406639297,1772008232156,-250.0,7.569e-05,2]
[406639298,1772008232166,-481186.79761744,7.569e-05,2]
[406639299,1772008232177,-143506.44718413,7.569e-05,2]
[406639300,1772008232188,-174291.42009051,7.569e-05,2]
[406639301,1772008232199,-139088.38847575,7.569e-05,2]
[406639302,1772008232210,-1254.41808677,7.569e-05,2]
[406639303,1772008232221,-2977.0394641,7.569e-05,2]
[406639332,1772008238468,-913046.08837161,7.569e-05,2]
[406639333,1772008238477,-500.0,7.601e-05,2]
[406639334,1772008238487,-250.0,7.616e-05,2]
[406639335,1772008238496,-1000.0,7.668e-05,2]
[406639336,1772008238505,-5000.0,7.675e-05,2]
[406639337,1772008238514,-500.0,7.691e-05,2]
[406639338,1772008238524,-5000.0,7.701e-05,2]
[406639339,1772008238533,-5000.0,7.701e-05,2]
[406639340,1772008238543,-5000.0,7.701e-05,2]
[406639341,1772008238552,-2700.0,7.8e-05,2]
[406639342,1772008238561,-200.0,7.8e-05,2]
[406639343,1772008238571,-300.0,7.8e-05,2]
[406639345,1772008238581,-292.45,7.863e-05,2]
[406639347,1772008238590,-5500.0,7.9e-05,2]
[406639350,1772008238600,-400.0,7.9e-05,2]
[406639351,1772008238609,-600.0,7.9e-05,2]
[406639353,1772008238619,-4098.0,7.918e-05,2]
[406639355,1772008238628,-13303.0,7.918e-05,2]
[406639357,1772008238637,-2606.0,7.918e-05,2]
[406639359,1772008238647,-308.7,7.918e-05,2]
[406639361,1772008238656,-8942.76683331,7.918e-05,2]
[406639407,1772008240248,-3169.56762615,7.918e-05,2]
[406639408,1772008240355,-26117.43658238,7.918e-05,2]
[406639409,1772008240366,-6260.77965526,7.918e-05,2]
[406639410,1772008240389,-22.28246346,7.918e-05,2]
[406639411,1772008240400,-780.55523728,7.918e-05,2]
[406639412,1772008240523,-565.29442398,7.918e-05,2]
[406639477,1772008344622,-500.0,7.568e-05,2]
[406639478,1772008344651,-274.5697672,7.568e-05,2]
[406639479,1772008344677,-300.0,7.583e-05,2]
[406639480,1772008344704,-97425.4302328,7.584e-05,2]
[406639481,1772008354422,-10000.01,7.584e-05,2]
[406639482,1772008354742,-10000.01,7.584e-05,2]
[406639483,1772008354941,-10000.01,7.584e-05,2]
[406639484,1772008356274,-10000.01,7.584e-05,2]
[406639485,1772008358593,-10000.01,7.584e-05,2]
[406639487,1772008506665,171.0,7.584e-05,3]
[406639496,1772008911905,-919.128068,7.584e-05,2]
[406639497,1772008911934,-613.73156102,7.584e-05,2]
[406639498,1772008911962,-164.143,7.585e-05,2]
[406639499,1772008911990,-1334.768,7.585e-05,2]
[406639500,1772008912020,-250.0,7.63e-05,2]
[406639501,1772008912050,-1200.0,7.674e-05,2]
[406639502,1772008912157,-1036.46874196,7.675e-05,2]
[406639503,1772008917772,-3963.53125804,7.675e-05,2]
[406639504,1772008917800,-300.0,7.738e-05,2]
[406639505,1772008917827,-300.0,7.738e-05,2]
[406639506,1772008917854,-41.94748392,7.739e-05,2]
[406639507,1772008917914,-789.05251608,7.739e-05,2]
[406639508,1772008920881,-500.0,7.739e-05,2]
[406639509,1772008920918,-500.0,7.739e-05,2]
[406639510,1772008920948,-563.63148188,7.739e-05,2]
[406639511,1772008920977,-500.0,7.739e-05,2]
[406639512,1772008921009,-500.0,7.739e-05,2]
[406639513,1772008921038,-150.0,7.739e-05,2]
[406639514,1772008921346,-4572.74703624,7.74e-05,2]
[406639515,1772008967545,157.56,5.819e-05,2]
[406639517,1772009219929,-10000.01,7.64e-05,2]
[406639518,1772009220140,-10000.01,7.64e-05,2]
[406639519,1772009226001,-300.0,7.639e-05,2]
[406639520,1772009226052,-9400.01,7.64e-05,2]
[406639521,1772009226104,-10000.01,7.64e-05,2]
[406639528,1772009432136,-501.0,7.542e-05,2]
[406639529,1772009432191,-1099.0,7.542e-05,2]
[406639530,1772009432209,-300.0,7.639e-05,2]
[406639531,1772009432222,-46.03891421,7.639e-05,2]
[406639532,1772009432234,-103.96108579,7.639e-05,2]
[406639533,1772009432245,-300.0,7.639e-05,2]
[406639534,1772009432261,-300.0,7.639e-05,2]
[406639535,1772009432272,-250.0,7.639e-05,2]
[406639536,1772009432283,-1397.58696075,7.64e-05,2]
[406639537,1772009432295,-1000.0,7.64e-05,2]
[406639538,1772009432308,-346.84803172,7.64e-05,2]
[406639539,1772009432467,-2255.56500753,7.64e-05,2]
[406639540,1772009432481,-3621.16564122,7.64e-05,2]
[406639541,1772009432496,-343.01153381,7.64e-05,2]
[406639542,1772009432508,-655.25,7.64e-05,2]
[406639543,1772009432524,-913.26740704,7.64e-05,2]
[406639544,1772009432536,-3595.5067225,7.64e-05,2]
[406639545,1772009432551,-835.60817854,7.64e-05,2]
[406639546,1772009432564,-19084.52985481,7.64e-05,2]
[406639547,1772009432577,-27495.61322569,7.64e-05,2]
[406639548,1772009432588,-179765.23270484,7.64e-05,2]
[406639549,1772009432600,-5442.37040625,7.64e-05,2]
[406639550,1772009432614,-456.50541151,7.64e-05,2]
[406639557,1772009438164,-2206.24593183,7.64e-05,2]
[406639558,1772009438266,-459081.53621572,7.64e-05,2]
[406639559,1772009438327,-302.92287827,7.64e-05,2]
[406639560,1772009438384,-510.40022984,7.64e-05,2]
[406639761,1772009440493,-309.84145248,7.64e-05,2]
[406639773,1772009440599,-570.54789703,7.64e-05,2]
[406639776,1772009440609,-19999.755009,7.64e-05,2]
[406639778,1772009440620,-87870.51562171,7.64e-05,2]
[406639804,1772009443278,-77692.49999989,7.64e-05,2]
[406639805,1772009443333,-7179.24948459,7.64e-05,2]
[406639806,1772009443343,-13222.7401123,7.64e-05,2]
[406639829,1772009446379,-1560.5827,7.64e-05,2]
[406639830,1772009450423,-10000.01,7.64e-05,2]
[406639831,1772009456225,-10000.01,7.64e-05,2]
[406639832,1772009495783,1353.424,7.487e-05,2]
[406639833,1772009495878,165.222,7.487e-05,2]
[406639834,1772009514196,4484.48600167,7.5e-05,2]
[406639835,1772009514265,515.52399833,7.5e-05,2]
[406639836,1772009514289,5000.01,7.5e-05,2]
[406639837,1772009514310,3245.83031901,7.5e-05,2]
[406639838,1772009674836,10000.01,7.167e-05,2]
[406639839,1772009674858,4439.78,7.167e-05,2]
[406639840,1772009698541,166.66,7.382e-05,2]
[406639841,1772009811411,1852.42,7.098e-05,2]
[406639842,1772009824388,2980.93,7.507e-05,2]
[406639843,1772009824408,1869.07,7.507e-05,2]
[406639844,1772009832109,500.0,7.096e-05,2]
[406639858,1772009897376,-973.57803615,7.53e-05,2]
[406639859,1772009897405,-3052.8539277,7.534e-05,2]
[406639860,1772009900224,-1947.1460723,7.534e-05,2]
[406639861,1772009900252,-1200.0,7.539e-05,2]
[406639862,1772009900278,-150.0,7.539e-05,2]
[406639863,1772009900304,-300.0,7.539e-05,2]
[406639864,1772009900335,-352.23289577,7.539e-05,2]
[406639865,1772009909573,-8089.98213616,7.54e-05,2]
[406639866,1772009950568,2630.94,7.4e-05,2]
[406639867,1772009950590,1988.86510691,7.4e-05,2]
[406639868,1772010021253,3011.14489309,7.524e-05,2]
[406639869,1772010021273,185.85510691,7.524e-05,2]
[406639871,1772010039276,-1200.0,7.539e-05,2]
[406639872,1772010039297,-1200.0,7.539e-05,2]
[406639873,1772010039319,-150.0,7.539e-05,2]
[406639874,1772010039344,-5000.0,7.539e-05,2]
[406639875,1772010039370,-369750.0,7.54e-05,2]
[406639876,1772010061575,300.0,7.539e-05,2]
[406639877,1772010083422,275.42,4.284e-05,2]
[406639878,1772010083692,275.42,4.435e-05,2]
[406639879,1772010083893,275.42,4.585e-05,2]
[406639880,1772010087205,275.42,4.735e-05,2]
[406639881,1772010087410,275.42,4.886e-05,2]
[406639882,1772010087605,275.42,5.036e-05,2]
[406639883,1772010087802,275.42,5.186e-05,2]
[406639884,1772010088008,222.06,5.337e-05,2]
[406639885,1772010088032,53.36,5.337e-05,2]
[406639886,1772010088206,275.42,5.487e-05,2]
[406639887,1772010088417,275.42,5.637e-05,2]
[406639888,1772010088608,275.42,5.788e-05,2]
[406639889,1772010088811,275.42,5.938e-05,2]
[406639890,1772010088998,275.42,6.088e-05,2]
[406639891,1772010089203,275.42,6.239e-05,2]
[406639892,1772010089404,275.42,6.389e-05,2]
[406639893,1772010089598,275.42,6.539e-05,2]
[406639894,1772010089794,275.42,6.69e-05,2]
[406639895,1772010090182,17.86,6.84e-05,2]
[406639896,1772010090213,257.56,6.84e-05,2]
[406639897,1772010090286,275.42,6.99e-05,2]
[406639898,1772010090429,275.42,7.141e-05,2]
[406639899,1772010095870,165.222,7.389e-05,2]
[406639900,1772010096067,1082.739,7.389e-05,2]
[406639901,1772010102372,2179.0,6.6e-05,2]
[406639902,1772010139446,-4132.8248,7.54e-05,2]
[406639903,1772010139467,-1000.0,7.569e-05,2]
[406639904,1772010139487,-34867.1752,7.57e-05,2]
[406639905,1772010169171,6000.0,0.0001789,120]
[406639910,1772010210187,-300.0,7.569e-05,2]
[406639911,1772010210215,-250.0,7.57e-05,2]
[406639912,1772010210298,-6721.01,7.57e-05,2]
[406639913,1772010213026,-249.0,7.569e-05,2]
[406639914,1772010213060,-9502.01,7.57e-05,2]
[406639915,1772010263956,5000.01,7.47e-05,2]
[406639916,1772010263979,5000.01,7.47e-05,2]
[406639917,1772010264002,5000.01,7.47e-05,2]
[406639918,1772010264025,5000.01,7.47e-05,2]
[406639919,1772010264048,5000.01,7.47e-05,2]
[406639920,1772010264070,5000.01,7.47e-05,2]
[406639921,1772010264092,5000.01,7.47e-05,2]
[406639922,1772010264114,5000.01,7.47e-05,2]
[406639923,1772010264137,5000.01,7.47e-05,2]
[406639924,1772010264160,5000.01,7.47e-05,2]
[406639925,1772010264183,10000.01,7.47e-05,2]
[406639926,1772010264206,10000.01,7.47e-05,2]
[406639927,1772010264227,10000.01,7.47e-05,2]
[406639928,1772010264249,10000.01,7.47e-05,2]
[406639929,1772010264271,10000.01,7.47e-05,2]
[406639930,1772010264293,10000.01,7.47e-05,2]
[406639931,1772010264315,10000.01,7.47e-05,2]
[406639932,1772010264337,10000.01,7.47e-05,2]
[406639933,1772010264360,10000.01,7.47e-05,2]
[406639934,1772010264383,10000.01,7.47e-05,2]
[406639935,1772010264410,1717177.02093903,7.47e-05,2]
[406639936,1772010264437,100000.0,7.47e-05,2]
[406639937,1772010273246,-4578.17157408,7.47e-05,2]
[406639938,1772010273375,-5000.01,7.47e-05,2]
[406639939,1772010275800,-5000.01,7.47e-05,2]
[406639940,1772010276098,-5000.01,7.47e-05,2]
[406639941,1772010276205,-5000.01,7.47e-05,2]
[406639942,1772010276336,-5000.01,7.47e-05,2]
[406639943,1772010276497,-1755.45251311,7.47e-05,2]
[406639944,1772010276522,-1489.10497378,7.47e-05,2]
[406639945,1772010310087,-300.0,7.569e-05,2]
[406639946,1772010310112,-1200.0,7.569e-05,2]
[406639947,1772010310137,-5000.0,7.57e-05,2]
[406639948,1772010310162,-8500.0,7.57e-05,2]
[406639950,1772010430551,5000.01,7.47e-05,2]
[406639951,1772010430575,5000.01,7.47e-05,2]
[406639952,1772010430597,5000.01,7.47e-05,2]
[406639953,1772010430620,5000.01,7.47e-05,2]
[406639954,1772010430644,5000.01,7.47e-05,2]
[406639955,1772010430668,5000.01,7.47e-05,2]
[406639956,1772010430692,5000.01,7.47e-05,2]
[406639957,1772010430715,5000.01,7.47e-05,2]
[406639958,1772010430738,5000.01,7.47e-05,2]
[406639959,1772010430765,5000.01,7.47e-05,2]
[406639960,1772010430788,10000.01,7.47e-05,2]
[406639961,1772010430810,10000.01,7.47e-05,2]
[406639962,1772010430836,10000.01,7.47e-05,2]
[406639963,1772010430859,10000.01,7.47e-05,2]
[406639964,1772010430883,10000.01,7.47e-05,2]
[406639965,1772010430906,10000.01,7.47e-05,2]
[406639966,1772010430928,10000.01,7.47e-05,2]
[406639967,1772010430951,10000.01,7.47e-05,2]
[406639968,1772010430975,10000.01,7.47e-05,2]
[406639969,1772010430999,10000.01,7.47e-05,2]
[406639970,1772010434581,-5000.01,7.47e-05,2]
[406639971,1772010434683,-5000.01,7.47e-05,2]
[406639972,1772010434813,-5000.01,7.47e-05,2]
[406639973,1772010434932,-5000.01,7.47e-05,2]
[406639974,1772010435033,-5000.01,7.47e-05,2]
[406639975,1772010435179,-5000.01,7.47e-05,2]
[406639976,1772010435281,-5000.01,7.47e-05,2]
[406639977,1772010435419,-5000.01,7.47e-05,2]
[406639978,1772010435544,-5000.01,7.47e-05,2]
[406639979,1772010435692,-5000.01,7.47e-05,2]
[406639980,1772010435812,-5000.01,7.47e-05,2]
[406639981,1772010436166,1100.0,6.8e-05,2]
[406639982,1772010436193,2200.0,6.8e-05,2]
[406639983,1772010437991,-5000.01,7.47e-05,2]
[406639984,1772010438241,6600.0,6.9e-05,2]
[406639985,1772010438265,-5000.01,7.47e-05,2]
[406639986,1772010440328,9900.0,7e-05,2]
[406639987,1772010440397,-5000.01,7.47e-05,2]
[406639988,1772010440544,-5000.01,7.47e-05,2]
[406639989,1772010440669,-5000.01,7.47e-05,2]
[406639990,1772010440832,-5000.01,7.47e-05,2]
[406639991,1772010440948,-5000.01,7.47e-05,2]
[406639992,1772010441047,-5000.01,7.47e-05,2]
[406639993,1772010441177,-5000.01,7.47e-05,2]
[406639994,1772010441283,-5000.01,7.47e-05,2]
[406639995,1772010441397,-5000.01,7.47e-05,2]
[406639996,1772010441514,-5000.01,7.47e-05,2]
[406640000,1772010501638,-1180.01532193,7.469e-05,2]
[406640001,1772010501675,-7639.97935614,7.47e-05,2]
[406640002,1772010501744,-10000.01,7.47e-05,2]
[406640003,1772010501872,-10000.01,7.47e-05,2]
[406640004,1772010502016,-10000.01,7.47e-05,2]
[406640005,1772010502131,-10000.01,7.47e-05,2]
[406640006,1772010502249,-10000.01,7.47e-05,2]
[406640007,1772010502358,-10000.01,7.47e-05,2]
[406640008,1772010502555,-10000.01,7.47e-05,2]
[406640009,1772010502666,-10000.01,7.47e-05,2]
[406640010,1772010502881,-10000.01,7.47e-05,2]
[406640011,1772010507631,-10000.01,7.47e-05,2]
[406640012,1772010507741,-10000.01,7.47e-05,2]
[406640013,1772010507853,-10000.01,7.47e-05,2]
[406640014,1772010507961,-10000.01,7.47e-05,2]
[406640015,1772010508190,-10000.01,7.47e-05,2]
[406640016,1772010508319,-10000.01,7.47e-05,2]
[406640017,1772010508446,-10000.01,7.47e-05,2]
[406640018,1772010508549,-10000.01,7.47e-05,2]
[406640019,1772010508677,-10000.01,7.47e-05,2]
[406640020,1772010508771,-10000.01,7.47e-05,2]
[406640021,1772010513903,-969.0,7.469e-05,2]
[406640022,1772010513954,-8062.01,7.47e-05,2]
[406640023,1772010514039,-10000.01,7.47e-05,2]
[406640024,1772010514136,-10000.01,7.47e-05,2]
[406640025,1772010514270,-10000.01,7.47e-05,2]
[406640026,1772010514439,-500.0,7.469e-05,2]
[406640027,1772010514468,-500.0,7.469e-05,2]
[406640028,1772010514534,-500.0,7.469e-05,2]
[406640029,1772010514543,-500.0,7.469e-05,2]
[406640030,1772010514553,-7000.01,7.47e-05,2]
[406640031,1772010514748,-500.0,7.469e-05,2]
[406640032,1772010514837,-500.0,7.469e-05,2]
[406640033,1772010514866,-500.0,7.469e-05,2]
[406640034,1772010514894,-500.0,7.469e-05,2]
[406640035,1772010514998,-500.0,7.469e-05,2]
[406640036,1772010515028,-500.0,7.469e-05,2]
[406640037,1772010515058,-500.0,7.469e-05,2]
[406640038,1772010515124,-6000.01,7.47e-05,2]
[406640039,1772010515160,-500.0,7.469e-05,2]
[406640040,1772010515189,-500.0,7.469e-05,2]
[406640041,1772010515227,-500.0,7.469e-05,2]
[406640042,1772010515277,-500.0,7.469e-05,2]
[406640043,1772010515287,-6500.01,7.47e-05,2]
[406640044,1772010515342,-500.0,7.469e-05,2]
[406640045,1772010515388,-500.0,7.469e-05,2]
[406640046,1772010515414,-500.0,7.469e-05,2]
[406640047,1772010515431,-1.57267922,7.469e-05,2]
[406640048,1772010515440,-6998.43732078,7.47e-05,2]
[406640049,1772010515499,-500.0,7.469e-05,2]
[406640050,1772010515516,-9000.01,7.47e-05,2]
[406640051,1772010515541,-500.0,7.469e-05,2]
[406640052,1772010515572,-500.0,7.469e-05,2]
[406640053,1772010515582,-8500.01,7.47e-05,2]
[406640054,1772010518689,4264.13,6.858e-05,2]
[406640055,1772010523074,-10000.01,7.47e-05,2]
[406640056,1772010523198,-10000.01,7.47e-05,2]
[406640057,1772010523311,-10000.01,7.47e-05,2]
[406640058,1772010523432,-10000.01,7.47e-05,2]
[406640059,1772010523539,-10000.01,7.47e-05,2]
[406640060,1772010523797,-10000.01,7.47e-05,2]
[406640061,1772010523909,-10000.01,7.47e-05,2]
[406640062,1772010524015,-10000.01,7.47e-05,2]
[406640063,1772010524146,-10000.01,7.47e-05,2]
[406640064,1772010524256,-10000.01,7.47e-05,2]
[406640078,1772010632335,-300.0,7.469e-05,2]
[406640079,1772010632344,-28.0,7.469e-05,2]
[406640080,1772010632355,-122.0,7.469e-05,2]
[406640081,1772010632365,-157.79428379,7.469e-05,2]
[406640082,1772010632376,-1042.20571621,7.469e-05,2]
[406640083,1772010632385,-300.0,7.469e-05,2]
[406640084,1772010632394,-213.0,7.469e-05,2]
[406640085,1772010632403,-5000.0,7.469e-05,2]
[406640086,1772010632412,-250.0,7.47e-05,2]
[406640087,1772010632421,-6352.5310143,7.47e-05,2]
[406640088,1772010632430,-5138.09436464,7.47e-05,2]
[406640089,1772010632439,-1279.02931103,7.47e-05,2]
[406640090,1772010632447,-952329.12860396,7.47e-05,2]